[Event "Titled Tuesday Blitz July 20 2021"]
[White "Rodriguez Hernandez, Luis Daniel"]
[Black "Indjic, Aleksandar"]
[WhiteFideId "3506770"]
[BlackFideId "911925"]
[WhiteElo "2133"]
[BlackElo "2643"]
[Result "1-0"]
[Round "08"]
[TimeControl "180+1"]
[Date "2021.07.20"]
[WhiteClock "0:00:36"]
[BlackClock "0:01:25"]

1. e4 {[%clk 0:03:00]}  c5 {[%clk 0:02:58]} 2. c3 {[%clk 0:03:00]}  d5 {[%clk 0:02:56]} 3. exd5 {[%clk 0:03:01]}  Qxd5 {[%clk 0:02:56]} 4. d4 {[%clk 0:03:02]}  Nf6 {[%clk 0:02:53]} 5. Nf3 {[%clk 0:03:02]}  Qd6 {[%clk 0:02:53]} 6. Na3 {[%clk 0:02:56]}  cxd4 {[%clk 0:02:44]} 7. Nb5 {[%clk 0:02:56]}  Qd8 {[%clk 0:02:42]} 8. Bf4 {[%clk 0:02:43]}  Na6 {[%clk 0:02:26]} 9. Qa4 {[%clk 0:02:15]}  Bd7 {[%clk 0:02:17]} 10. O-O-O {[%clk 0:02:05]}  Nd5 {[%clk 0:02:02]} 11. Qxd4 {[%clk 0:01:28]}  e6 {[%clk 0:02:00]} 12. Nd6+ {[%clk 0:01:17]}  Bxd6 {[%clk 0:02:00]} 13. Bxd6 {[%clk 0:01:17]}  f6 {[%clk 0:01:59]} 14. Ba3 {[%clk 0:00:59]}  Kf7 {[%clk 0:01:53]} 15. Bd3 {[%clk 0:00:56]}  Qb6 {[%clk 0:01:46]} 16. Be4 {[%clk 0:00:45]}  Qxd4 {[%clk 0:01:45]} 17. Nxd4 {[%clk 0:00:42]}  Rac8 {[%clk 0:01:42]} 18. Nxe6 {[%clk 0:00:39]}  Nxc3 {[%clk 0:01:25]} 19. Rxd7+ {[%clk 0:00:36]}  Kxe6 {[%clk 0:01:25]} 20. Re7# {[%clk 0:00:36]} 1-0


[Site "https://www.chess.com"]

[Event "Titled Tuesday Blitz July 20 2021"]
[White "Rorrer, Grayson"]
[Black "Babiy, Olga"]
[WhiteFideId "30944996"]
[BlackFideId "14117258"]
[WhiteElo "2122"]
[BlackElo "2230"]
[Result "1-0"]
[Round "08"]
[TimeControl "180+1"]
[Date "2021.07.21"]
[WhiteClock "0:00:02"]
[BlackClock "0:00:02"]

1. e4 {[%clk 0:03:00]}  d6 {[%clk 0:02:54]} 2. d4 {[%clk 0:02:59]}  Nf6 {[%clk 0:02:54]} 3. Nc3 {[%clk 0:02:59]}  e5 {[%clk 0:02:54]} 4. Nf3 {[%clk 0:02:58]}  Nbd7 {[%clk 0:02:54]} 5. Bc4 {[%clk 0:02:57]}  Be7 {[%clk 0:02:55]} 6. O-O {[%clk 0:02:58]}  O-O {[%clk 0:02:54]} 7. Re1 {[%clk 0:02:59]}  a6 {[%clk 0:02:55]} 8. a4 {[%clk 0:02:59]}  b6 {[%clk 0:02:48]} 9. Qe2 {[%clk 0:02:55]}  c6 {[%clk 0:02:44]} 10. Bb3 {[%clk 0:02:52]}  Rb8 {[%clk 0:02:36]} 11. Bg5 {[%clk 0:02:48]}  b5 {[%clk 0:02:35]} 12. axb5 {[%clk 0:02:47]}  axb5 {[%clk 0:02:36]} 13. Rad1 {[%clk 0:02:46]}  Qc7 {[%clk 0:02:36]} 14. d5 {[%clk 0:02:23]}  b4 {[%clk 0:02:23]} 15. dxc6 {[%clk 0:02:22]}  bxc3 {[%clk 0:02:23]} 16. cxd7 {[%clk 0:02:22]}  Bxd7 {[%clk 0:02:22]} 17. bxc3 {[%clk 0:02:23]}  Be6 {[%clk 0:02:11]} 18. c4 {[%clk 0:01:36]}  h6 {[%clk 0:02:03]} 19. Bh4 {[%clk 0:01:23]}  g5 {[%clk 0:02:03]} 20. Bg3 {[%clk 0:01:24]}  Nh5 {[%clk 0:02:03]} 21. Rd5 {[%clk 0:01:08]}  Bxd5 {[%clk 0:01:55]} 22. cxd5 {[%clk 0:01:08]}  Bf6 {[%clk 0:01:46]} 23. Nd2 {[%clk 0:00:50]}  Nf4 {[%clk 0:01:43]} 24. Qg4 {[%clk 0:00:42]}  Qc8 {[%clk 0:01:33]} 25. Qd1 {[%clk 0:00:41]}  Rb4 {[%clk 0:01:11]} 26. Nf1 {[%clk 0:00:33]}  Kg7 {[%clk 0:00:50]} 27. f3 {[%clk 0:00:29]}  Bd8 {[%clk 0:00:41]} 28. Bf2 {[%clk 0:00:29]}  f5 {[%clk 0:00:35]} 29. Ng3 {[%clk 0:00:22]}  fxe4 {[%clk 0:00:32]} 30. fxe4 {[%clk 0:00:23]}  Kh7 {[%clk 0:00:20]} 31. Be3 {[%clk 0:00:19]}  Bb6 {[%clk 0:00:19]} 32. Bxb6 {[%clk 0:00:18]}  Rxb6 {[%clk 0:00:20]} 33. Qd2 {[%clk 0:00:18]}  Qc5+ {[%clk 0:00:19]} 34. Kh1 {[%clk 0:00:16]}  Rb7 {[%clk 0:00:19]} 35. Nf5 {[%clk 0:00:16]}  Rbf7 {[%clk 0:00:18]} 36. g3 {[%clk 0:00:16]}  Ng6 {[%clk 0:00:17]} 37. Qe2 {[%clk 0:00:12]}  Rxf5 {[%clk 0:00:17]} 38. exf5 {[%clk 0:00:13]}  Rxf5 {[%clk 0:00:17]} 39. c4 {[%clk 0:00:09]}  Rf2 {[%clk 0:00:16]} 40. Qe4 {[%clk 0:00:09]}  Qb4 {[%clk 0:00:16]} 41. Bc2 {[%clk 0:00:01]}  Rf6 {[%clk 0:00:14]} 42. h4 {[%clk 0:00:01]}  gxh4 {[%clk 0:00:13]} 43. gxh4 {[%clk 0:00:02]}  h5 {[%clk 0:00:11]} 44. Rg1 {[%clk 0:00:02]}  Qd2 {[%clk 0:00:06]} 45. Rxg6 {[%clk 0:00:02]}  Qc1+ {[%clk 0:00:04]} 46. Rg1+ {[%clk 0:00:02]}  Kh6 {[%clk 0:00:02]} 47. Qh7# {[%clk 0:00:02]} 1-0


[Site "https://www.chess.com"]

[Event "Titled Tuesday Blitz July 20 2021"]
[White "Rozhkov, Viacheslav"]
[Black "davigator"]
[WhiteFideId "4181484"]
[WhiteElo "2324"]
[BlackElo "2412"]
[Result "1-0"]
[Round "08"]
[TimeControl "180+1"]
[Date "2021.07.21"]
[WhiteClock "0:01:02"]
[BlackClock "0:00:42"]

1. e4 {[%clk 0:02:54]}  c5 {[%clk 0:02:58]} 2. Nf3 {[%clk 0:02:54]}  Nc6 {[%clk 0:02:57]} 3. d4 {[%clk 0:02:54]}  cxd4 {[%clk 0:02:57]} 4. Nxd4 {[%clk 0:02:55]}  Nf6 {[%clk 0:02:58]} 5. Nc3 {[%clk 0:02:55]}  d6 {[%clk 0:02:58]} 6. Bc4 {[%clk 0:02:54]}  Bd7 {[%clk 0:02:58]} 7. Bb3 {[%clk 0:02:54]}  Rc8 {[%clk 0:02:57]} 8. Be3 {[%clk 0:02:54]}  a6 {[%clk 0:02:57]} 9. Qe2 {[%clk 0:02:52]}  b5 {[%clk 0:02:55]} 10. O-O-O {[%clk 0:02:52]}  Na5 {[%clk 0:02:52]} 11. Kb1 {[%clk 0:02:50]}  e6 {[%clk 0:02:51]} 12. f3 {[%clk 0:02:50]}  Be7 {[%clk 0:02:47]} 13. g4 {[%clk 0:02:50]}  Nc4 {[%clk 0:02:42]} 14. Bc1 {[%clk 0:02:47]}  g6 {[%clk 0:02:37]} 15. h4 {[%clk 0:02:45]}  Qc7 {[%clk 0:02:33]} 16. h5 {[%clk 0:02:45]}  Qc5 {[%clk 0:02:22]} 17. hxg6 {[%clk 0:02:44]}  fxg6 {[%clk 0:02:23]} 18. f4 {[%clk 0:02:13]}  b4 {[%clk 0:02:21]} 19. Na4 {[%clk 0:02:12]}  Qc7 {[%clk 0:02:11]} 20. g5 {[%clk 0:01:53]}  Nh5 {[%clk 0:01:57]} 21. Rxh5 {[%clk 0:01:53]}  gxh5 {[%clk 0:01:57]} 22. Qxh5+ {[%clk 0:01:53]}  Kd8 {[%clk 0:01:57]} 23. Qf7 {[%clk 0:01:42]}  e5 {[%clk 0:01:46]} 24. Ne6+ {[%clk 0:01:25]}  Bxe6 {[%clk 0:01:46]} 25. Qxe6 {[%clk 0:01:25]}  Ke8 {[%clk 0:01:23]} 26. f5 {[%clk 0:01:17]}  Qd7 {[%clk 0:00:54]} 27. Bxc4 {[%clk 0:01:15]}  Qxa4 {[%clk 0:00:52]} 28. Qxc8+ {[%clk 0:01:14]}  Bd8 {[%clk 0:00:52]} 29. Rxd6 {[%clk 0:01:08]}  Qa5 {[%clk 0:00:45]} 30. Qe6+ {[%clk 0:01:02]}  Be7 {[%clk 0:00:42]} 31. Qf7# {[%clk 0:01:02]} 1-0


[Site "https://www.chess.com"]

[Event "Titled Tuesday Blitz July 20 2021"]
[White "Sihite, Chelsie Monica Ignesias"]
[Black "Hryshchenko, Kamila"]
[WhiteFideId "7101198"]
[BlackFideId "14147491"]
[WhiteElo "2224"]
[BlackElo "1966"]
[Result "0-1"]
[Round "08"]
[TimeControl "180+1"]
[Date "2021.07.21"]
[WhiteClock "0:00:11"]
[BlackClock "0:00:27"]

1. c4 {[%clk 0:03:00]}  f5 {[%clk 0:02:58]} 2. Nf3 {[%clk 0:02:53]}  Nf6 {[%clk 0:02:58]} 3. g3 {[%clk 0:02:53]}  d6 {[%clk 0:02:58]} 4. Bg2 {[%clk 0:02:53]}  e5 {[%clk 0:02:59]} 5. O-O {[%clk 0:02:52]}  Be7 {[%clk 0:02:59]} 6. d4 {[%clk 0:02:51]}  e4 {[%clk 0:02:59]} 7. Ne1 {[%clk 0:02:51]}  c6 {[%clk 0:02:59]} 8. Nc3 {[%clk 0:02:50]}  d5 {[%clk 0:03:00]} 9. cxd5 {[%clk 0:02:48]}  cxd5 {[%clk 0:03:01]} 10. Bf4 {[%clk 0:02:45]}  O-O {[%clk 0:03:01]} 11. Nc2 {[%clk 0:02:44]}  Nc6 {[%clk 0:02:58]} 12. Rc1 {[%clk 0:02:42]}  Be6 {[%clk 0:02:57]} 13. Be5 {[%clk 0:02:41]}  Rc8 {[%clk 0:02:56]} 14. f4 {[%clk 0:02:40]}  Nd7 {[%clk 0:02:50]} 15. e3 {[%clk 0:02:38]}  Nb6 {[%clk 0:02:49]} 16. Qe1 {[%clk 0:02:28]}  Nc4 {[%clk 0:02:46]} 17. Rb1 {[%clk 0:02:26]}  Nb4 {[%clk 0:02:45]} 18. Nxb4 {[%clk 0:02:01]}  Bxb4 {[%clk 0:02:46]} 19. Qf2 {[%clk 0:01:50]}  Qa5 {[%clk 0:02:42]} 20. Rfc1 {[%clk 0:01:45]}  Nxb2 {[%clk 0:02:39]} 21. Rxb2 {[%clk 0:01:40]}  b6 {[%clk 0:02:12]} 22. Rxb4 {[%clk 0:01:09]}  Qxb4 {[%clk 0:02:11]} 23. Ne2 {[%clk 0:01:07]}  Qd2 {[%clk 0:02:10]} 24. Rxc8 {[%clk 0:01:01]}  Rxc8 {[%clk 0:02:11]} 25. Bf1 {[%clk 0:01:01]}  Rc2 {[%clk 0:02:01]} 26. g4 {[%clk 0:01:01]}  b5 {[%clk 0:00:53]} 27. Kh1 {[%clk 0:00:52]}  Rc1 {[%clk 0:00:48]} 28. Kg1 {[%clk 0:00:51]}  Re1 {[%clk 0:00:48]} 29. Kg2 {[%clk 0:00:49]}  a5 {[%clk 0:00:43]} 30. Qh4 {[%clk 0:00:42]}  Rxe2+ {[%clk 0:00:43]} 31. Bxe2 {[%clk 0:00:39]}  Qxe2+ {[%clk 0:00:44]} 32. Qf2 {[%clk 0:00:36]}  Qxg4+ {[%clk 0:00:39]} 33. Qg3 {[%clk 0:00:35]}  b4 {[%clk 0:00:35]} 34. Qxg4 {[%clk 0:00:31]}  fxg4 {[%clk 0:00:36]} 35. Bd6 {[%clk 0:00:31]}  Kf7 {[%clk 0:00:31]} 36. Bc7 {[%clk 0:00:30]}  a4 {[%clk 0:00:31]} 37. Ba5 {[%clk 0:00:30]}  b3 {[%clk 0:00:31]} 38. axb3 {[%clk 0:00:30]}  axb3 {[%clk 0:00:32]} 39. Bc3 {[%clk 0:00:30]}  Kg6 {[%clk 0:00:32]} 40. Kg3 {[%clk 0:00:25]}  Kh5 {[%clk 0:00:32]} 41. Bb2 {[%clk 0:00:24]}  g5 {[%clk 0:00:32]} 42. Ba3 {[%clk 0:00:16]}  gxf4+ {[%clk 0:00:31]} 43. Kxf4 {[%clk 0:00:14]}  Kh4 {[%clk 0:00:32]} 44. Ke5 {[%clk 0:00:13]}  Bg8 {[%clk 0:00:32]} 45. Kf5 {[%clk 0:00:11]}  h5 {[%clk 0:00:31]} 46. Kg6 {[%clk 0:00:11]}  Be6 {[%clk 0:00:31]} 47. Kf6 {[%clk 0:00:11]}  Bc8 {[%clk 0:00:31]} 48. Ke5 {[%clk 0:00:10]}  Bb7 {[%clk 0:00:31]} 49. Kf6 {[%clk 0:00:10]}  Kh3 {[%clk 0:00:31]} 50. Kg5 {[%clk 0:00:11]}  h4 {[%clk 0:00:32]} 51. Kf4 {[%clk 0:00:11]}  g3 {[%clk 0:00:27]} 0-1


[Site "https://www.chess.com"]

[Event "Titled Tuesday Blitz July 20 2021"]
[White "Sinitsina, Anastassia"]
[Black "Pastar, Slaven"]
[WhiteFideId "4504640"]
[BlackFideId "14402718"]
[WhiteElo "2204"]
[BlackElo "2150"]
[Result "0-1"]
[Round "08"]
[TimeControl "180+1"]
[Date "2021.07.21"]
[WhiteClock "0:00:36"]
[BlackClock "0:00:17"]

1. Nf3 {[%clk 0:03:00]}  b6 {[%clk 0:02:55]} 2. g3 {[%clk 0:03:01]}  Bb7 {[%clk 0:02:56]} 3. Bg2 {[%clk 0:03:02]}  g6 {[%clk 0:02:56]} 4. O-O {[%clk 0:03:02]}  Bg7 {[%clk 0:02:57]} 5. d4 {[%clk 0:03:03]}  d6 {[%clk 0:02:56]} 6. c4 {[%clk 0:03:03]}  Nd7 {[%clk 0:02:56]} 7. Nc3 {[%clk 0:03:03]}  f5 {[%clk 0:02:57]} 8. d5 {[%clk 0:02:59]}  h6 {[%clk 0:02:52]} 9. Nd4 {[%clk 0:02:58]}  Nf8 {[%clk 0:02:51]} 10. Ne6 {[%clk 0:02:45]}  Nxe6 {[%clk 0:02:48]} 11. dxe6 {[%clk 0:02:45]}  Bxg2 {[%clk 0:02:49]} 12. Qa4+ {[%clk 0:02:42]}  c6 {[%clk 0:02:36]} 13. Kxg2 {[%clk 0:02:42]}  Qc8 {[%clk 0:02:34]} 14. Nd5 {[%clk 0:02:32]}  Nf6 {[%clk 0:02:33]} 15. Nf4 {[%clk 0:02:29]}  g5 {[%clk 0:02:24]} 16. Nd5 {[%clk 0:02:26]}  Kf8 {[%clk 0:02:03]} 17. Ne3 {[%clk 0:02:09]}  Qxe6 {[%clk 0:01:45]} 18. Qxc6 {[%clk 0:02:08]}  Rc8 {[%clk 0:01:37]} 19. Qf3 {[%clk 0:02:06]}  f4 {[%clk 0:01:21]} 20. gxf4 {[%clk 0:02:02]}  g4 {[%clk 0:01:21]} 21. Qb7 {[%clk 0:01:57]}  h5 {[%clk 0:01:10]} 22. f5 {[%clk 0:01:53]}  Qe4+ {[%clk 0:01:09]} 23. Qxe4 {[%clk 0:01:52]}  Nxe4 {[%clk 0:01:10]} 24. f3 {[%clk 0:01:46]}  gxf3+ {[%clk 0:01:07]} 25. exf3 {[%clk 0:01:36]}  Nc5 {[%clk 0:01:03]} 26. Rb1 {[%clk 0:01:31]}  Rg8 {[%clk 0:01:01]} 27. Kh1 {[%clk 0:01:26]}  Nd3 {[%clk 0:00:51]} 28. b3 {[%clk 0:01:21]}  Bh6 {[%clk 0:00:51]} 29. Bd2 {[%clk 0:01:17]}  h4 {[%clk 0:00:37]} 30. h3 {[%clk 0:01:06]}  Rg3 {[%clk 0:00:34]} 31. Kh2 {[%clk 0:01:01]}  Bf4 {[%clk 0:00:30]} 32. Kh1 {[%clk 0:00:47]}  Rxh3+ {[%clk 0:00:29]} 33. Kg2 {[%clk 0:00:46]}  Rg3+ {[%clk 0:00:23]} 34. Kh1 {[%clk 0:00:44]}  Kf7 {[%clk 0:00:22]} 35. Rbd1 {[%clk 0:00:38]}  Rh3+ {[%clk 0:00:21]} 36. Kg1 {[%clk 0:00:36]}  Bxe3+ {[%clk 0:00:17]} 0-1


[Site "https://www.chess.com"]

[Event "Titled Tuesday Blitz July 20 2021"]
[White "Song, Michael"]
[Black "Turgut, Aydin"]
[WhiteFideId "2613190"]
[BlackFideId "2078791"]
[WhiteElo "2274"]
[BlackElo "2138"]
[Result "0-1"]
[Round "08"]
[TimeControl "180+1"]
[Date "2021.07.20"]
[WhiteClock "0:00:21"]
[BlackClock "0:00:42"]

1. d4 {[%clk 0:03:00]}  d5 {[%clk 0:02:58]} 2. c4 {[%clk 0:03:00]}  e6 {[%clk 0:02:58]} 3. Nc3 {[%clk 0:02:58]}  Bb4 {[%clk 0:02:58]} 4. cxd5 {[%clk 0:02:57]}  exd5 {[%clk 0:02:58]} 5. Bf4 {[%clk 0:02:56]}  c5 {[%clk 0:02:58]} 6. e3 {[%clk 0:02:56]}  c4 {[%clk 0:02:59]} 7. Nf3 {[%clk 0:02:55]}  Nf6 {[%clk 0:02:45]} 8. Qc2 {[%clk 0:02:52]}  Ne4 {[%clk 0:02:32]} 9. Nd2 {[%clk 0:02:47]}  Bf5 {[%clk 0:02:09]} 10. Ndxe4 {[%clk 0:02:46]}  Bxe4 {[%clk 0:02:07]} 11. Qc1 {[%clk 0:02:31]}  Nc6 {[%clk 0:02:06]} 12. Be2 {[%clk 0:02:30]}  Bxg2 {[%clk 0:01:57]} 13. Rg1 {[%clk 0:02:28]}  Be4 {[%clk 0:01:58]} 14. Kf1 {[%clk 0:02:14]}  Bg6 {[%clk 0:01:48]} 15. Bf3 {[%clk 0:02:12]}  Bxc3 {[%clk 0:01:42]} 16. Qxc3 {[%clk 0:02:06]}  Qd7 {[%clk 0:01:42]} 17. Bg4 {[%clk 0:02:01]}  Qe7 {[%clk 0:01:35]} 18. Kg2 {[%clk 0:01:33]}  O-O {[%clk 0:01:33]} 19. Bf3 {[%clk 0:01:30]}  Qe6 {[%clk 0:01:29]} 20. h4 {[%clk 0:01:23]}  b5 {[%clk 0:01:22]} 21. Kh2 {[%clk 0:01:22]}  b4 {[%clk 0:01:19]} 22. Qe1 {[%clk 0:01:21]}  Qf6 {[%clk 0:01:09]} 23. Bxd5 {[%clk 0:01:01]}  Nxd4 {[%clk 0:00:57]} 24. Qxb4 {[%clk 0:00:29]}  Qxh4+ {[%clk 0:00:47]} 25. Kg2 {[%clk 0:00:29]}  Qg4+ {[%clk 0:00:47]} 26. Bg3 {[%clk 0:00:27]}  Be4+ {[%clk 0:00:47]} 27. Bxe4 {[%clk 0:00:22]}  Qxe4+ {[%clk 0:00:48]} 28. Kf1 {[%clk 0:00:21]}  Qd3+ {[%clk 0:00:42]} 29. Kg2 {[%clk 0:00:22]}  Qe4+ {[%clk 0:00:43]} 30. Kf1 {[%clk 0:00:21]}  Nc2 {[%clk 0:00:42]} 0-1


[Site "https://www.chess.com"]

[Event "Titled Tuesday Blitz July 20 2021"]
[White "Spata, German"]
[Black "Onufrienko, Vladislav"]
[WhiteFideId "113026"]
[BlackFideId "13804332"]
[WhiteElo "2238"]
[BlackElo "1661"]
[Result "1-0"]
[Round "08"]
[TimeControl "180+1"]
[Date "2021.07.21"]
[WhiteClock "0:00:11"]
[BlackClock "0:00:17"]

1. Nf3 {[%clk 0:03:00]}  d5 {[%clk 0:02:58]} 2. e3 {[%clk 0:03:00]}  c6 {[%clk 0:02:58]} 3. c4 {[%clk 0:03:01]}  e6 {[%clk 0:02:58]} 4. Nc3 {[%clk 0:03:01]}  f5 {[%clk 0:02:59]} 5. d4 {[%clk 0:02:58]}  Nf6 {[%clk 0:02:59]} 6. Bd3 {[%clk 0:02:52]}  Bd6 {[%clk 0:03:00]} 7. Qc2 {[%clk 0:02:50]}  O-O {[%clk 0:03:00]} 8. Bd2 {[%clk 0:02:41]}  b6 {[%clk 0:02:59]} 9. cxd5 {[%clk 0:02:40]}  cxd5 {[%clk 0:02:58]} 10. Nb5 {[%clk 0:02:37]}  Ba6 {[%clk 0:02:48]} 11. Nxd6 {[%clk 0:02:30]}  Bxd3 {[%clk 0:02:47]} 12. Qxd3 {[%clk 0:02:27]}  Qxd6 {[%clk 0:02:47]} 13. a3 {[%clk 0:02:22]}  Nc6 {[%clk 0:02:46]} 14. O-O {[%clk 0:02:20]}  Rfc8 {[%clk 0:02:46]} 15. Rfc1 {[%clk 0:02:18]}  Ne4 {[%clk 0:02:46]} 16. Be1 {[%clk 0:02:18]}  a6 {[%clk 0:02:45]} 17. a4 {[%clk 0:02:09]}  h6 {[%clk 0:02:35]} 18. Rc2 {[%clk 0:02:07]}  a5 {[%clk 0:02:15]} 19. Rac1 {[%clk 0:02:04]}  Rc7 {[%clk 0:01:52]} 20. g3 {[%clk 0:01:55]}  Rac8 {[%clk 0:01:51]} 21. Kg2 {[%clk 0:01:49]}  g5 {[%clk 0:01:36]} 22. Qa6 {[%clk 0:01:39]}  g4 {[%clk 0:01:14]} 23. Ne5 {[%clk 0:01:38]}  Nxe5 {[%clk 0:01:05]} 24. dxe5 {[%clk 0:01:27]}  Qxe5 {[%clk 0:01:05]} 25. Rxc7 {[%clk 0:01:14]}  Rxc7 {[%clk 0:01:06]} 26. Qa8+ {[%clk 0:01:08]}  Kh7 {[%clk 0:01:00]} 27. Qb8 {[%clk 0:01:01]}  Nc5 {[%clk 0:00:27]} 28. Bc3 {[%clk 0:00:44]}  Qe4+ {[%clk 0:00:27]} 29. Kg1 {[%clk 0:00:41]}  Rd7 {[%clk 0:00:22]} 30. Qh8+ {[%clk 0:00:37]}  Kg6 {[%clk 0:00:22]} 31. Bd4 {[%clk 0:00:19]}  Nb3 {[%clk 0:00:18]} 32. Qg8+ {[%clk 0:00:15]}  Kh5 {[%clk 0:00:17]} 33. Qe8+ {[%clk 0:00:14]}  Kg5 {[%clk 0:00:17]} 34. Qxd7 {[%clk 0:00:12]}  Nxc1 {[%clk 0:00:17]} 35. Qg7+ {[%clk 0:00:10]}  Kh5 {[%clk 0:00:17]} 36. Qf7+ {[%clk 0:00:10]}  Kg5 {[%clk 0:00:17]} 37. Bf6# {[%clk 0:00:11]} 1-0


[Site "https://www.chess.com"]

[Event "Titled Tuesday Blitz July 20 2021"]
[White "Tanenbaum, Zachary"]
[Black "Djordjevic, Dejan N"]
[WhiteFideId "2060850"]
[BlackFideId "913316"]
[WhiteElo "2165"]
[BlackElo "2262"]
[Result "1-0"]
[Round "08"]
[TimeControl "180+1"]
[Date "2021.07.21"]
[WhiteClock "0:00:01"]
[BlackClock "0:00:01"]

1. e4 {[%clk 0:03:00]}  c5 {[%clk 0:02:57]} 2. Nf3 {[%clk 0:03:00]}  Nc6 {[%clk 0:02:56]} 3. Nc3 {[%clk 0:03:00]}  g6 {[%clk 0:02:56]} 4. d4 {[%clk 0:03:00]}  cxd4 {[%clk 0:02:55]} 5. Nxd4 {[%clk 0:03:01]}  Bg7 {[%clk 0:02:56]} 6. Be3 {[%clk 0:03:00]}  d6 {[%clk 0:02:56]} 7. f3 {[%clk 0:02:58]}  Nf6 {[%clk 0:02:46]} 8. Qd2 {[%clk 0:02:58]}  h5 {[%clk 0:02:29]} 9. O-O-O {[%clk 0:02:53]}  Qa5 {[%clk 0:02:25]} 10. Nb3 {[%clk 0:02:31]}  Qc7 {[%clk 0:02:16]} 11. Nd5 {[%clk 0:02:26]}  Nxd5 {[%clk 0:02:15]} 12. exd5 {[%clk 0:02:26]}  Ne5 {[%clk 0:02:15]} 13. Bd4 {[%clk 0:02:20]}  O-O {[%clk 0:02:04]} 14. f4 {[%clk 0:02:14]}  Ng4 {[%clk 0:01:52]} 15. Bxg7 {[%clk 0:02:12]}  Kxg7 {[%clk 0:01:51]} 16. h3 {[%clk 0:02:12]}  Nf6 {[%clk 0:01:51]} 17. Qd4 {[%clk 0:01:53]}  Bf5 {[%clk 0:01:47]} 18. Bd3 {[%clk 0:01:50]}  Bxd3 {[%clk 0:01:42]} 19. Rxd3 {[%clk 0:01:29]}  Rac8 {[%clk 0:01:28]} 20. Rc3 {[%clk 0:01:26]}  Qd7 {[%clk 0:01:28]} 21. Re3 {[%clk 0:00:55]}  b5 {[%clk 0:01:19]} 22. Qd3 {[%clk 0:00:45]}  Rc4 {[%clk 0:01:13]} 23. f5 {[%clk 0:00:41]}  Rfc8 {[%clk 0:00:51]} 24. Nd4 {[%clk 0:00:40]}  Nxd5 {[%clk 0:00:50]} 25. Rf3 {[%clk 0:00:10]}  Nb4 {[%clk 0:00:42]} 26. Qd2 {[%clk 0:00:06]}  Rxc2+ {[%clk 0:00:19]} 27. Nxc2 {[%clk 0:00:05]}  Rxc2+ {[%clk 0:00:18]} 28. Qxc2 {[%clk 0:00:05]}  Nxc2 {[%clk 0:00:19]} 29. Kxc2 {[%clk 0:00:06]}  Qc6+ {[%clk 0:00:19]} 30. Kb1 {[%clk 0:00:05]}  Qe4+ {[%clk 0:00:18]} 31. Ka1 {[%clk 0:00:04]}  gxf5 {[%clk 0:00:18]} 32. Rhf1 {[%clk 0:00:04]}  e6 {[%clk 0:00:18]} 33. R3f2 {[%clk 0:00:05]}  h4 {[%clk 0:00:18]} 34. a3 {[%clk 0:00:05]}  d5 {[%clk 0:00:18]} 35. Ka2 {[%clk 0:00:05]}  a5 {[%clk 0:00:17]} 36. Rf4 {[%clk 0:00:05]}  Qxg2 {[%clk 0:00:15]} 37. R1f3 {[%clk 0:00:04]}  Kf6 {[%clk 0:00:12]} 38. Rb3 {[%clk 0:00:04]}  Qg5 {[%clk 0:00:07]} 39. Rff3 {[%clk 0:00:03]}  Qg2 {[%clk 0:00:06]} 40. Rf4 {[%clk 0:00:03]}  Kg5 {[%clk 0:00:06]} 41. Rd4 {[%clk 0:00:03]}  Qe2 {[%clk 0:00:04]} 42. Rdd3 {[%clk 0:00:02]}  f4 {[%clk 0:00:01]} 43. Rdc3 {[%clk 0:00:01]} 1-0


[Site "https://www.chess.com"]

[Event "Titled Tuesday Blitz July 20 2021"]
[White "Timofeev, Artyom"]
[Black "Quparadze, Giga"]
[WhiteFideId "4140419"]
[BlackFideId "13602250"]
[WhiteElo "2582"]
[BlackElo "2658"]
[Result "0-1"]
[Round "08"]
[TimeControl "180+1"]
[Date "2021.07.20"]
[WhiteClock "0:01:08"]
[BlackClock "0:00:49"]

1. c4 {[%clk 0:03:00]}  c5 {[%clk 0:02:59]} 2. Nf3 {[%clk 0:02:59]}  Nc6 {[%clk 0:02:59]} 3. Nc3 {[%clk 0:02:59]}  g6 {[%clk 0:02:59]} 4. g3 {[%clk 0:02:59]}  Bg7 {[%clk 0:02:59]} 5. Bg2 {[%clk 0:02:59]}  d6 {[%clk 0:02:59]} 6. O-O {[%clk 0:02:59]}  e6 {[%clk 0:03:00]} 7. e3 {[%clk 0:02:59]}  Nge7 {[%clk 0:03:00]} 8. d4 {[%clk 0:02:59]}  O-O {[%clk 0:03:00]} 9. d5 {[%clk 0:02:56]}  Na5 {[%clk 0:03:00]} 10. Nd2 {[%clk 0:02:53]}  Rb8 {[%clk 0:03:00]} 11. Qc2 {[%clk 0:02:52]}  b5 {[%clk 0:02:58]} 12. dxe6 {[%clk 0:02:49]}  Bxe6 {[%clk 0:02:55]} 13. cxb5 {[%clk 0:02:48]}  d5 {[%clk 0:02:51]} 14. Nb3 {[%clk 0:02:48]}  Nxb3 {[%clk 0:02:44]} 15. axb3 {[%clk 0:02:47]}  d4 {[%clk 0:02:44]} 16. Rd1 {[%clk 0:02:39]}  Qb6 {[%clk 0:02:38]} 17. Ra6 {[%clk 0:02:26]}  Qc7 {[%clk 0:02:37]} 18. Rxe6 {[%clk 0:02:13]}  fxe6 {[%clk 0:02:34]} 19. Ne4 {[%clk 0:02:13]}  Nd5 {[%clk 0:02:21]} 20. Qxc5 {[%clk 0:02:03]}  dxe3 {[%clk 0:01:59]} 21. Bxe3 {[%clk 0:01:54]}  Rfc8 {[%clk 0:01:43]} 22. Rxd5 {[%clk 0:01:46]}  exd5 {[%clk 0:01:41]} 23. Qxd5+ {[%clk 0:01:46]}  Kh8 {[%clk 0:01:34]} 24. Ng5 {[%clk 0:01:30]}  Rf8 {[%clk 0:01:29]} 25. Ne6 {[%clk 0:01:29]}  Qf7 {[%clk 0:00:53]} 26. Nxf8 {[%clk 0:01:24]}  Rxf8 {[%clk 0:00:54]} 27. Bc5 {[%clk 0:01:08]}  Qxd5 {[%clk 0:00:49]} 28. Bxd5 {[%clk 0:01:08]}  Rf5 {[%clk 0:00:49]} 0-1


[Site "https://www.chess.com"]

[Event "Titled Tuesday Blitz July 20 2021"]
[White "Trakru, Rohun"]
[Black "Derraugh, Geordie"]
[WhiteFideId "2097613"]
[BlackFideId "2603950"]
[WhiteElo "1746"]
[BlackElo "2132"]
[Result "1-0"]
[Round "08"]
[TimeControl "180+1"]
[Date "2021.07.21"]
[WhiteClock "0:00:12"]
[BlackClock "0:00:08"]

1. d4 {[%clk 0:03:00]}  Nf6 {[%clk 0:02:57]} 2. Bg5 {[%clk 0:02:49]}  d5 {[%clk 0:02:55]} 3. Bxf6 {[%clk 0:02:48]}  gxf6 {[%clk 0:02:55]} 4. e3 {[%clk 0:02:47]}  c5 {[%clk 0:02:54]} 5. Nf3 {[%clk 0:02:42]}  Nc6 {[%clk 0:02:50]} 6. c4 {[%clk 0:02:38]}  dxc4 {[%clk 0:02:42]} 7. d5 {[%clk 0:02:38]}  Ne5 {[%clk 0:02:39]} 8. Nxe5 {[%clk 0:02:36]}  fxe5 {[%clk 0:02:40]} 9. Bxc4 {[%clk 0:02:36]}  Qd6 {[%clk 0:02:24]} 10. Nc3 {[%clk 0:02:33]}  f5 {[%clk 0:02:12]} 11. Nb5 {[%clk 0:02:28]}  Qb6 {[%clk 0:02:12]} 12. Qh5+ {[%clk 0:02:28]}  Kd8 {[%clk 0:02:08]} 13. O-O-O {[%clk 0:02:25]}  a6 {[%clk 0:02:04]} 14. d6 {[%clk 0:02:12]}  exd6 {[%clk 0:01:25]} 15. Qg5+ {[%clk 0:00:59]}  Be7 {[%clk 0:01:24]} 16. Qg7 {[%clk 0:00:45]}  Re8 {[%clk 0:01:14]} 17. Nc3 {[%clk 0:00:33]}  Bd7 {[%clk 0:00:39]} 18. Nd5 {[%clk 0:00:29]}  Qa5 {[%clk 0:00:39]} 19. Nxe7 {[%clk 0:00:25]}  Rxe7 {[%clk 0:00:37]} 20. Qf8+ {[%clk 0:00:22]}  Re8 {[%clk 0:00:35]} 21. Qxd6 {[%clk 0:00:22]}  Qc7 {[%clk 0:00:36]} 22. Qf6+ {[%clk 0:00:22]}  Kc8 {[%clk 0:00:36]} 23. Rd6 {[%clk 0:00:20]}  b5 {[%clk 0:00:27]} 24. Bf7 {[%clk 0:00:16]}  Rd8 {[%clk 0:00:20]} 25. Rhd1 {[%clk 0:00:15]}  Kb7 {[%clk 0:00:18]} 26. Bd5+ {[%clk 0:00:14]}  Kb8 {[%clk 0:00:09]} 27. Bxa8 {[%clk 0:00:14]}  Kxa8 {[%clk 0:00:08]} 28. Rxa6+ {[%clk 0:00:14]}  Kb7 {[%clk 0:00:09]} 29. Rad6 {[%clk 0:00:13]}  c4 {[%clk 0:00:09]} 30. Qxe5 {[%clk 0:00:12]}  c3 {[%clk 0:00:09]} 31. Qxc3 {[%clk 0:00:12]}  Qb8 {[%clk 0:00:08]} 32. Rxd7+ {[%clk 0:00:11]}  Rxd7 {[%clk 0:00:08]} 33. Rxd7+ {[%clk 0:00:12]} 1-0


[Site "https://www.chess.com"]